[Event "Serbian-ch Semifinal Women 2024"]
[Site "Paracin"]
[Date "2024.02.05"]
[Round "1.1"]
[White "Radenkovic, Mila"]
[Black "Srdanovic, Jovana"]
[Result "0-1"]
[ECO "B13"]
[WhiteElo "1741"]
[BlackElo "2121"]
[Annotator "TA"]
[PlyCount "56"]
[EventDate "2024.02.04"]
[EventType "swiss"]
[EventCountry "SRB"]
[SourceTitle "playchess.com"]
[Source "ChessBase"]
[SourceQuality "1"]
[TimeControl "40/5400+30:1800+30"]

{[%evp 11,56,18,36,4,39,33,37,18,24,21,17,25,27,14,14,23,27,9,0,-6,13,7,11,14,45,18,46,47,80,76,114,114,125,132,135,63,39,47,63,60,54,0,10,-47,-25,-75,0]} 1. e4 {[%emt 0:00:10]} c6 {[%emt 0:00:08]} 2. d4 {[%emt 0:00:30]} d5 {[%emt 0:00:07]} 3. exd5 {[%emt 0:00:48]} cxd5 {[%emt 0:00:08]} 4. Bd3 {[%emt 0:00:35]} Nc6 {[%emt 0:00:18]} 5. c3 {[%emt 0:00:21]} Qc7 {[%emt 0:00:56]} 6. h3 {[%emt 0:07:59]} Nf6 {[%emt 0:00:41]} 7. Ne2 {[%emt 0:02:11]} g6 {[%emt 0:07:46]} 8. Bf4 {[%emt 0:06:03]} Qb6 {[%emt 0:01:34]} 9. Na3 {[%emt 0:05:44] White is slightly better.} a6 {[%emt 0:03:17] Repels Nb5} 10. Qb3 {[%emt 0:00:43]} Qd8 {[%emt 0:00:49]} 11. O-O {[%emt 0:06:58]} Bg7 {[%emt 0:01:37]} 12. Qc2 {[%emt 0:16:43]} O-O {[%emt 0:05:15]} 13. Rad1 {[%emt 0:01:19]} Bd7 {[%emt 0:03:01]} 14. Ng3 {[%emt 0:03:12]} b5 {[%emt 0:02:14]} 15. Qd2 {[%emt 0:00:55]} Qb6 {[%emt 0:05:09]} 16. Rfe1 {[%emt 0:05:37]} Rfe8 {[%emt 0:01:10]} 17. Nc2 {[%emt 0:09:30]} a5 {[%emt 0:06:46][%cal Ba6a5,Ba5a4][%mdl 32]} 18. Ne3 {[%emt 0:04:09]} b4 {[%emt 0:04:05]} 19. Bg5 {[%emt 0:03:33]} Be6 {[%emt 0:08:54]} 20. Ne2 {[%emt 0:09:33]} a4 {[%emt 0:17:09]} 21. Nf4 {[%emt 0:04:13]} Qa5 {[%emt 0:00:58]} 22. Nxe6 {[%emt 0:01:46]} fxe6 {[%emt 0:00:05] [#]} 23. Ng4 {[%emt 0:01:32]} (23. Nc2 $1 $16) 23... Nxg4 $14 {[%emt 0:00:34]} 24. hxg4 {[%emt 0:00:02]} bxc3 {[%emt 0:00:34]} 25. bxc3 {[%emt 0:00:08]} e5 {[%emt 0:00:42]} 26. dxe5 {[%emt 0:06:18]} Nxe5 {[%emt 0:00:36]} 27. Bb1 {[%emt 0:01:39]} ({White should play} 27. Bf4 $11 Nf7 28. Re6) 27... e6 $15 {[%emt 0:00:58][%cal Oa8c8]} 28. Qf4 $1 {[%emt 0:01:12] [#]} Nd7 {[%emt 0:06:16][%mdl 32768] Weighted Error Value: White=0.17 (very precise) /Black=0.13 (very precise) .  Mistake:       	White=2     	Black=1      Inaccurate:     	White=2     	Black=5      OK:         	White=5     	Black=6      Best:        	White=1     	Black=1      Strong:       	White=1     	---       . Loss on time!?} ({Stronger than} 28... Qxc3 29. Rc1 Qb2 30. Rc7 $16) ({Black should try} 28... Nc4 $1 $17) 0-1

[Event "Serbian-ch Semifinal Women 2024"]
[Site "Paracin"]
[Date "2024.02.05"]
[Round "1.2"]
[White "Bukhteeva, Viktoria"]
[Black "Tadic, Ana"]
[Result "1-0"]
[ECO "D02"]
[WhiteElo "2070"]
[BlackElo "1746"]
[Annotator "NA RC"]
[PlyCount "89"]
[EventDate "2024.02.04"]
[EventType "swiss"]
[EventCountry "SRB"]
[SourceTitle "playchess.com"]
[Source "ChessBase"]
[SourceQuality "1"]
[TimeControl "40/5400+30:1800+30"]

1. d4 {[%emt 0:00:07]} d5 {[%emt 0:00:11]} 2. Bf4 {[%emt 0:00:06]} c5 {[%emt 0:00:35]} 3. e3 {[%emt 0:00:43]} Nc6 {[%emt 0:01:35]} 4. Nf3 {[%emt 0:04:50]} Nf6 {[%emt 0:01:26]} 5. Nbd2 {[%emt 0:04:58]} cxd4 {[%emt 0:00:58]} 6. exd4 {[%emt 0:00:13]} Nh5 {[%emt 0:00:43]} 7. Be3 {[%emt 0:01:45]} e6 {[%emt 0:02:21]} 8. c3 {[%emt 0:01:45]} Bd6 {[%emt 0:03:10]} 9. Bd3 {[%emt 0:00:07]} Nf4 {[%emt 0:00:51]} 10. Bxf4 {[%emt 0:00:07]} Bxf4 {[%emt 0:00:04]} 11. O-O {[%emt 0:00:09]} O-O {[%emt 0:01:17]} 12. Re1 {[%emt 0:01:16]} Bd7 {[%emt 0:07:13]} 13. g3 {[%emt 0:01:28]} Bh6 {[%emt 0:02:51]} 14. Qc2 {[%emt 0:15:47]} g6 {[%emt 0:07:12]} 15. h4 {[%emt 0:03:03]} Rc8 {[%emt 0:06:45]} 16. a3 {[%emt 0:01:05]} f5 {[%emt 0:09:22]} 17. b4 {[%emt 0:13:31]} Qc7 {[%emt 0:11:25]} 18. Nb3 {[%emt 0:13:33]} b6 {[%emt 0:05:48]} 19. Qe2 {[%emt 0:03:51]} Bg7 {[%emt 0:17:15]} 20. Rac1 {[%emt 0:05:12]} f4 {[%emt 0:03:48]} 21. Ne5 {[%emt 0:03:45]} Nxe5 {[%emt 0:04:00]} 22. dxe5 {[%emt 0:00:07]} fxg3 {[%emt 0:02:14]} 23. fxg3 {[%emt 0:00:19]} Bh6 {[%emt 0:00:39]} 24. Nd2 {[%emt 0:09:08]} b5 {[%emt 0:02:32]} 25. Rc2 {[%emt 0:03:29]} Qb6+ {[%emt 0:03:05]} 26. Kg2 {[%emt 0:00:06]} d4 {[%emt 0:01:05]} 27. Ne4 {[%emt 0:01:05]} Bc6 {[%emt 0:00:53]} 28. Kh3 {[%emt 0:04:38]} Bxe4 {[%emt 0:01:09]} 29. Qxe4 {[%emt 0:00:05]} dxc3 {[%emt 0:01:01]} 30. h5 {[%emt 0:00:07]} Qc6 {[%emt 0:02:35]} 31. Qxc6 {[%emt 0:02:08]} Rxc6 {[%emt 0:00:04]} 32. hxg6 {[%emt 0:00:08]} hxg6 {[%emt 0:00:02]} 33. Bxb5 {[%emt 0:00:19]} Rc7 {[%emt 0:00:12]} 34. Re4 {[%emt 0:00:35]} Rf3 {[%emt 0:00:58]} 35. Bc4 {[%emt 0:01:19]} Kf7 {[%emt 0:00:31]} 36. Kg2 {[%emt 0:01:05]} Re3 {[%emt 0:01:23]} 37. Rxe3 {[%emt 0:00:12]} Bxe3 {[%emt 0:00:03]} 38. Rxc3 {[%emt 0:00:10]} Bd4 {[%emt 0:00:16]} 39. Bxe6+ {[%emt 0:00:34]} Kxe6 {[%emt 0:00:11]} 40. Rxc7 {[%emt 0:00:04]} Kxe5 {[%emt 0:00:04]} 41. Kf3 {[%emt 0:30:13]} Kd6 {[%emt 0:30:29]} 42. Rc2 {[%emt 0:00:30]} Ke5 {[%emt 0:01:04]} 43. Kg4 {[%emt 0:00:30]} Kf6 {[%emt 0:00:37]} 44. Rc6+ {[%emt 0:00:16]} Kf7 {[%emt 0:00:08]} 45. a4 {[%emt 0:00:10]} 1-0

[Event "Serbian-ch Semifinal Women 2024"]
[Site "Paracin"]
[Date "2024.02.05"]
[Round "1.3"]
[White "Vujovic, Vera"]
[Black "Stankovic, Andrea"]
[Result "0-1"]
[ECO "C11"]
[WhiteElo "2123"]
[BlackElo "1714"]
[Annotator "NA RC"]
[PlyCount "88"]
[EventDate "2024.02.04"]
[EventType "swiss"]
[EventCountry "SRB"]
[SourceTitle "playchess.com"]
[Source "ChessBase"]
[SourceQuality "1"]
[TimeControl "40/5400+30:1800+30"]

1. e4 {[%emt 0:00:04]} e6 {[%emt 0:00:05]} 2. d4 {[%emt 0:00:20]} d5 {[%emt 0:00:04]} 3. Nc3 {[%emt 0:00:16]} Nf6 {[%emt 0:00:12]} 4. e5 {[%emt 0:00:16]} Nfd7 {[%emt 0:00:04]} 5. f4 {[%emt 0:00:11]} c5 {[%emt 0:00:08]} 6. Nf3 {[%emt 0:00:28]} Nc6 {[%emt 0:00:35]} 7. Be3 {[%emt 0:00:26]} Qa5 {[%emt 0:04:29]} 8. dxc5 {[%emt 0:01:55]} Bxc5 {[%emt 0:03:50]} 9. Bxc5 {[%emt 0:00:23]} Nxc5 {[%emt 0:00:06]} 10. Qd2 {[%emt 0:01:54]} a6 {[%emt 0:01:43]} 11. O-O-O {[%emt 0:24:10]} Bd7 {[%emt 0:05:29]} 12. Kb1 {[%emt 0:03:50]} b5 {[%emt 0:04:34]} 13. f5 {[%emt 0:22:01]} Na4 {[%emt 0:18:15]} 14. Nxa4 {[%emt 0:07:47]} Qxa4 {[%emt 0:01:28]} 15. Ng5 {[%emt 0:06:21]} h6 {[%emt 0:03:38]} 16. Nf3 {[%emt 0:00:50]} O-O-O {[%emt 0:05:11]} 17. fxe6 {[%emt 0:02:05]} Bxe6 {[%emt 0:03:59]} 18. Qc3 {[%emt 0:03:19]} Kb7 {[%emt 0:00:15]} 19. Nd4 {[%emt 0:10:21]} Rc8 {[%emt 0:02:13]} 20. Nxe6 {[%emt 0:01:11]} fxe6 {[%emt 0:01:33]} 21. Rc1 {[%emt 0:06:49]} Rhf8 {[%emt 0:07:42]} 22. g3 {[%emt 0:04:11]} Rf2 {[%emt 0:05:08]} 23. Bh3 {[%emt 0:01:39]} Nd4 {[%emt 0:04:46]} 24. Qd3 {[%emt 0:00:43]} Rc6 {[%emt 0:11:23]} 25. Rhf1 {[%emt 0:00:30]} Rxh2 {[%emt 0:00:38]} 26. Rf7+ {[%emt 0:00:18]} Kb6 {[%emt 0:01:08]} 27. b3 {[%emt 0:00:37]} Qb4 {[%emt 0:02:08]} 28. a3 {[%emt 0:00:58]} Nxc2 {[%emt 0:01:48]} 29. Rxc2 {[%emt 0:00:33]} Qe1+ {[%emt 0:00:29]} 30. Kb2 {[%emt 0:00:05]} Rcxc2+ {[%emt 0:01:44]} 31. Qxc2 {[%emt 0:00:11]} Qxe5+ {[%emt 0:00:35]} 32. Kb1 {[%emt 0:00:23]} Rxc2 {[%emt 0:00:25]} 33. Kxc2 {[%emt 0:00:09]} Qe2+ {[%emt 0:00:34]} 34. Kc1 {[%emt 0:01:16]} Qe3+ {[%emt 0:02:32]} 35. Kb2 {[%emt 0:00:23]} Qd2+ {[%emt 0:00:46]} 36. Kb1 {[%emt 0:00:13]} Qe1+ {[%emt 0:00:33]} 37. Ka2 {[%emt 0:00:28]} Kc5 {[%emt 0:00:58]} 38. Rf8 {[%emt 0:01:18]} e5 {[%emt 0:01:32]} 39. Rc8+ {[%emt 0:00:20]} Kd4 {[%emt 0:00:10]} 40. Be6 {[%emt 0:00:15]} Qxg3 {[%emt 0:01:32]} 41. Rd8 {[%emt 0:30:51]} Qg2+ {[%emt 0:30:08]} 42. Ka1 {[%emt 0:00:28]} Kc3 {[%emt 0:00:13]} 43. Rc8+ {[%emt 0:00:13]} Kxb3 {[%emt 0:00:10]} 44. Bxd5+ {[%emt 0:00:12]} Qxd5 {[%emt 0:00:13]} 0-1

[Event "Serbian-ch Semifinal Women 2024"]
[Site "Paracin"]
[Date "2024.02.06"]
[Round "2.1"]
[White "Tadic, Ana"]
[Black "Vujovic, Vera"]
[Result "0-1"]
[ECO "C52"]
[WhiteElo "1746"]
[BlackElo "2123"]
[Annotator "NA RC"]
[PlyCount "60"]
[EventDate "2024.02.04"]
[EventType "swiss"]
[EventCountry "SRB"]
[SourceTitle "playchess.com"]
[Source "ChessBase"]
[SourceQuality "1"]
[TimeControl "40/5400+30:1800+30"]

1. e4 {[%emt 0:00:04]} e5 {[%emt 0:00:06]} 2. Nf3 {[%emt 0:00:07]} Nc6 {[%emt 0:00:06]} 3. Bc4 {[%emt 0:00:07]} Bc5 {[%emt 0:00:07]} 4. b4 {[%emt 0:00:07]} Bxb4 {[%emt 0:00:42]} 5. c3 {[%emt 0:00:07]} Ba5 {[%emt 0:00:47]} 6. d4 {[%emt 0:00:23]} exd4 {[%emt 0:06:09]} 7. O-O {[%emt 0:00:31]} Nf6 {[%emt 0:05:27]} 8. e5 {[%emt 1:33:04]} d5 {[%emt 0:02:07]} 9. exd6 {[%emt 0:00:00]} cxd6 {[%emt 0:01:35]} 10. Re1+ {[%emt 0:00:00]} Ne7 {[%emt 0:02:30]} 11. Nxd4 {[%emt 0:00:00]} O-O {[%emt 0:01:27]} 12. Ba3 {[%emt 0:00:00]} a6 {[%emt 0:07:08]} 13. Qf3 {[%emt 0:00:00]} Ng6 {[%emt 0:03:37]} 14. Bb3 {[%emt 0:00:00]} Qc7 {[%emt 0:07:33]} 15. Bc2 {[%emt 0:00:17]} Bg4 {[%emt 0:10:50]} 16. Qg3 {[%emt 0:00:56]} Rfe8 {[%emt 0:01:01]} 17. Rc1 {[%emt 0:00:49]} Ne5 {[%emt 0:07:44]} 18. h3 {[%emt 0:01:05]} Bd7 {[%emt 0:00:28]} 19. Bf5 {[%emt 0:00:29]} Nc4 {[%emt 0:02:45]} 20. Bb4 {[%emt 0:00:48]} Bb6 {[%emt 0:08:36]} 21. Qd3 {[%emt 0:00:52]} Ne5 {[%emt 0:03:29]} 22. Qd2 {[%emt 0:00:35]} Bxf5 {[%emt 0:00:45]} 23. Nxf5 {[%emt 0:00:06]} Ne4 {[%emt 0:00:28]} 24. Qd5 {[%emt 0:00:40]} Nxf2 {[%emt 0:01:21]} 25. Kh2 {[%emt 0:00:12]} Qd7 {[%emt 0:03:05]} 26. Nxd6 {[%emt 0:01:30]} Nfg4+ {[%emt 0:03:12]} 27. hxg4 {[%emt 0:00:30]} Nxg4+ {[%emt 0:00:04]} 28. Kg3 {[%emt 0:00:35]} Bf2+ {[%emt 0:00:42]} 29. Kf3 {[%emt 0:00:30]} Re3+ {[%emt 0:00:08]} 30. Kf4 {[%emt 0:00:04]} Bg3+ {[%emt 0:00:10]} 0-1

[Event "Serbian-ch Semifinal Women 2024"]
[Site "Paracin"]
[Date "2024.02.06"]
[Round "2.2"]
[White "Srdanovic, Jovana"]
[Black "Bukhteeva, Viktoria"]
[Result "1/2-1/2"]
[ECO "A97"]
[WhiteElo "2121"]
[BlackElo "2070"]
[Annotator "NA RC"]
[PlyCount "132"]
[EventDate "2024.02.04"]
[EventType "swiss"]
[EventCountry "SRB"]
[SourceTitle "playchess.com"]
[Source "ChessBase"]
[SourceQuality "1"]
[TimeControl "40/5400+30:1800+30"]

1. d4 {[%emt 0:05:28]} f5 {[%emt 0:00:08]} 2. c4 {[%emt 0:00:06]} e6 {[%emt 0:00:14]} 3. g3 {[%emt 0:00:15]} Nf6 {[%emt 0:00:18]} 4. Bg2 {[%emt 0:00:08]} Be7 {[%emt 0:00:18]} 5. Nc3 {[%emt 0:00:54]} d6 {[%emt 0:00:50]} 6. Nf3 {[%emt 0:00:15]} O-O {[%emt 0:00:08]} 7. O-O {[%emt 0:00:52]} Qe8 {[%emt 0:00:21]} 8. Re1 {[%emt 0:01:32]} Ne4 {[%emt 0:00:04]} 9. Qc2 {[%emt 0:01:56]} Qg6 {[%emt 0:04:46]} 10. e3 {[%emt 0:07:47]} c6 {[%emt 0:10:38]} 11. b4 {[%emt 0:05:40]} d5 {[%emt 0:06:16]} 12. Ne5 {[%emt 0:01:09]} Qh5 {[%emt 0:01:22]} 13. f3 {[%emt 0:05:36]} Nxc3 {[%emt 0:00:50]} 14. Qxc3 {[%emt 0:00:05]} Nd7 {[%emt 0:00:12]} 15. a3 {[%emt 0:08:47]} Nxe5 {[%emt 0:14:32]} 16. dxe5 {[%emt 0:00:19]} Bd7 {[%emt 0:00:03]} 17. Bb2 {[%emt 0:01:01]} Rac8 {[%emt 0:01:27]} 18. Rad1 {[%emt 0:01:51]} Rfd8 {[%emt 0:09:55]} 19. Qb3 {[%emt 0:17:01]} Bf8 {[%emt 0:04:50]} 20. e4 {[%emt 0:02:06]} fxe4 {[%emt 0:00:47]} 21. cxd5 {[%emt 0:00:07]} exd5 {[%emt 0:09:06]} 22. fxe4 {[%emt 0:05:16]} Be6 {[%emt 0:01:33]} 23. exd5 {[%emt 0:00:42]} cxd5 {[%emt 0:00:06]} 24. Bxd5 {[%emt 0:01:17]} Rxd5 {[%emt 0:06:37]} 25. Rxd5 {[%emt 0:03:48]} Qf7 {[%emt 0:01:55]} 26. Red1 {[%emt 0:00:14]} Rd8 {[%emt 0:03:51]} 27. Rxd8 {[%emt 0:00:24]} Bxb3 {[%emt 0:00:05]} 28. Rf1 {[%emt 0:00:08]} Qe7 {[%emt 0:00:06]} 29. Rfxf8+ {[%emt 0:01:14]} Qxf8 {[%emt 0:00:06]} 30. Rxf8+ {[%emt 0:00:07]} Kxf8 {[%emt 0:00:02]} 31. Kf2 {[%emt 0:00:09]} Ke7 {[%emt 0:00:10]} 32. Ke3 {[%emt 0:00:30]} Ke6 {[%emt 0:00:15]} 33. Kd4 {[%emt 0:00:25]} Bd5 {[%emt 0:01:16]} 34. Kc5 {[%emt 0:01:36]} a6 {[%emt 0:01:21]} 35. Kb6 {[%emt 0:01:38]} Bf3 {[%emt 0:02:34]} 36. a4 {[%emt 0:02:12]} Bc6 {[%emt 0:00:19]} 37. b5 {[%emt 0:01:41]} axb5 {[%emt 0:00:05]} 38. a5 {[%emt 0:00:29]} Be4 {[%emt 0:00:21]} 39. Kxb5 {[%emt 0:00:16]} Bf3 {[%emt 0:00:28]} 40. Kc5 {[%emt 0:00:16]} Bg2 {[%emt 0:00:23]} 41. Kd4 {[%emt 0:30:43]} Bf3 {[%emt 0:30:23]} 42. Ke3 {[%emt 0:00:05]} Bd5 {[%emt 0:00:31]} 43. Kf4 {[%emt 0:01:48]} Ba2 {[%emt 0:00:23]} 44. h4 {[%emt 0:02:19]} Bb1 {[%emt 0:00:05]} 45. g4 {[%emt 0:01:13]} Bc2 {[%emt 0:00:04]} 46. Ba3 {[%emt 0:02:33]} Bb1 {[%emt 0:00:38]} 47. Bd6 {[%emt 0:00:14]} Bc2 {[%emt 0:00:09]} 48. Bb8 {[%emt 0:00:10]} Bb1 {[%emt 0:00:20]} 49. Bc7 {[%emt 0:00:13]} Bc2 {[%emt 0:00:04]} 50. Bd6 {[%emt 0:00:04]} Bb1 {[%emt 0:00:05]} 51. Bf8 {[%emt 0:03:57]} Kf7 {[%emt 0:00:29]} 52. Bd6 {[%emt 0:01:20]} Ke6 {[%emt 0:00:06]} 53. h5 {[%emt 0:00:10]} Bc2 {[%emt 0:01:21]} 54. g5 {[%emt 0:01:14]} Bb1 {[%emt 0:00:25]} 55. Bf8 {[%emt 0:01:47]} Kf7 {[%emt 0:00:45]} 56. Ba3 {[%emt 0:01:40]} Ke6 {[%emt 0:00:10]} 57. h6 {[%emt 0:00:30]} gxh6 {[%emt 0:00:18]} 58. gxh6 {[%emt 0:00:04]} Bc2 {[%emt 0:00:05]} 59. Bf8 {[%emt 0:00:04]} Bb1 {[%emt 0:00:09]} 60. Bg7 {[%emt 0:00:06]} Bc2 {[%emt 0:00:11]} 61. Ke3 {[%emt 0:00:08]} Bb1 {[%emt 0:00:22]} 62. Kd4 {[%emt 0:00:04]} Bc2 {[%emt 0:00:07]} 63. Kc5 {[%emt 0:00:12]} Be4 {[%emt 0:00:09]} 64. Kb6 {[%emt 0:00:11]} Bf3 {[%emt 0:00:11]} 65. Kc7 {[%emt 0:00:05]} Be4 {[%emt 0:00:11]} 66. Kd8 {[%emt 0:00:30]} Bf3 {[%emt 0:00:17]} 1/2-1/2

[Event "Serbian-ch Semifinal Women 2024"]
[Site "Paracin"]
[Date "2024.02.06"]
[Round "2.3"]
[White "Grozdanovic, Anastasia"]
[Black "Radenkovic, Mila"]
[Result "1-0"]
[ECO "E73"]
[WhiteElo "2051"]
[BlackElo "1741"]
[Annotator "NA RC"]
[PlyCount "55"]
[EventDate "2024.02.04"]
[EventType "swiss"]
[EventCountry "SRB"]
[SourceTitle "playchess.com"]
[Source "ChessBase"]
[SourceQuality "1"]
[TimeControl "40/5400+30:1800+30"]

1. d4 {[%emt 0:00:03]} Nf6 {[%emt 0:00:19]} 2. c4 {[%emt 0:00:19]} g6 {[%emt 0:00:44]} 3. Nc3 {[%emt 0:00:07]} Bg7 {[%emt 0:00:24]} 4. e4 {[%emt 0:00:30]} d6 {[%emt 0:00:53]} 5. Be2 {[%emt 0:00:08]} O-O {[%emt 0:02:11]} 6. Be3 {[%emt 0:00:03]} e5 {[%emt 0:03:24]} 7. d5 {[%emt 0:00:07]} c6 {[%emt 0:06:45]} 8. g4 {[%emt 0:00:51]} cxd5 {[%emt 0:09:30]} 9. cxd5 {[%emt 0:00:22]} Qa5 {[%emt 0:01:30]} 10. Kf1 {[%emt 0:09:19]} Bd7 {[%emt 0:08:06]} 11. a3 {[%emt 0:04:15]} Na6 {[%emt 0:03:59]} 12. g5 {[%emt 0:08:35]} Nh5 {[%emt 0:14:01]} 13. Bxh5 {[%emt 0:03:19]} gxh5 {[%emt 0:00:08]} 14. Qxh5 {[%emt 0:01:04]} Rfc8 {[%emt 0:04:31]} 15. Qd1 {[%emt 0:10:48]} Nc5 {[%emt 0:13:07]} 16. Nge2 {[%emt 0:07:17]} Qa6 {[%emt 0:06:50]} 17. Kg2 {[%emt 0:04:40]} f5 {[%emt 0:05:08]} 18. gxf6 {[%emt 0:06:15]} Bxf6 {[%emt 0:00:02]} 19. Ng3 {[%emt 0:01:34]} Nd3 {[%emt 0:05:46]} 20. Qd2 {[%emt 0:09:20]} Kh8 {[%emt 0:07:15]} 21. Nce2 {[%emt 0:04:19]} Rg8 {[%emt 0:02:10]} 22. Rad1 {[%emt 0:07:57]} Bb5 {[%emt 0:01:50]} 23. a4 {[%emt 0:03:38]} Qxa4 {[%emt 0:00:09]} 24. Nc3 {[%emt 0:00:11]} Qxd1 {[%emt 0:02:59]} 25. Rxd1 {[%emt 0:01:12]} Ba6 {[%emt 0:00:03]} 26. Ra1 {[%emt 0:01:46]} h5 {[%emt 0:01:04]} 27. Kh1 {[%emt 0:02:44]} Nc5 {[%emt 0:00:15]} 28. Bxc5 {[%emt 0:00:07]} 1-0

[Event "Serbian-ch Semifinal Women 2024"]
[Site "Paracin"]
[Date "2024.02.06"]
[Round "3.1"]
[White "Radenkovic, Mila"]
[Black "Jovanovic, Anja"]
[Result "1-0"]
[ECO "B02"]
[WhiteElo "1741"]
[BlackElo "1910"]
[Annotator "RC"]
[PlyCount "137"]
[EventDate "2024.02.04"]
[EventType "swiss"]
[EventCountry "SRB"]
[SourceTitle "playchess.com"]
[Source "ChessBase"]
[SourceQuality "1"]
[TimeControl "40/5400+30:1800+30"]

1. e4 {[%emt 0:00:03]} Nf6 {[%emt 0:00:05]} 2. Nc3 {[%emt 0:00:26]} d5 {[%emt 0:00:16]} 3. exd5 {[%emt 0:02:06]} Nxd5 {[%emt 0:00:08]} 4. Nxd5 {[%emt 0:00:37]} Qxd5 {[%emt 0:00:08]} 5. Nf3 {[%emt 0:01:13]} Bf5 {[%emt 0:06:53]} 6. d3 {[%emt 0:12:14]} Nc6 {[%emt 0:16:12]} 7. Be3 {[%emt 0:06:01]} e5 {[%emt 0:04:50]} 8. Be2 {[%emt 0:04:28]} Be7 {[%emt 0:03:55]} 9. O-O {[%emt 0:01:03]} O-O {[%emt 0:01:11]} 10. h3 {[%emt 0:05:08]} Rad8 {[%emt 0:05:03]} 11. Qc1 {[%emt 0:04:57]} h6 {[%emt 0:04:51]} 12. Rd1 {[%emt 0:00:40]} Qe6 {[%emt 0:01:08]} 13. Nh2 {[%emt 0:02:22]} Qg6 {[%emt 0:08:07]} 14. Bg4 {[%emt 0:01:13]} Bxg4 {[%emt 0:00:56]} 15. hxg4 {[%emt 0:00:27]} Bd6 {[%emt 0:10:46]} 16. g5 {[%emt 0:25:53]} hxg5 {[%emt 0:02:10]} 17. Bxg5 {[%emt 0:01:53]} Nd4 {[%emt 0:01:45]} 18. Re1 {[%emt 0:00:06]} f6 {[%emt 0:12:42]} 19. Be3 {[%emt 0:01:47]} Qh5 {[%emt 0:00:52]} 20. Qd1 {[%emt 0:18:16]} Qxd1 {[%emt 0:01:17]} 21. Rexd1 {[%emt 0:00:02]} Nxc2 {[%emt 0:00:35]} 22. Rac1 {[%emt 0:00:04]} Nxe3 {[%emt 0:02:09]} 23. fxe3 {[%emt 0:00:02]} b6 {[%emt 0:00:50]} 24. Nf3 {[%emt 0:05:56]} Kf7 {[%emt 0:06:11]} 25. Kf2 {[%emt 0:00:58]} g5 {[%emt 0:01:16]} 26. g4 {[%emt 0:00:42]} Kg6 {[%emt 0:00:54]} 27. Ke2 {[%emt 0:00:52]} Rh8 {[%emt 0:00:46]} 28. Rh1 {[%emt 0:00:24]} Rhe8 {[%emt 0:01:52]} 29. e4 {[%emt 0:00:12]} a5 {[%emt 0:02:53]} 30. Nd2 {[%emt 0:02:37]} Rh8 {[%emt 0:00:30]} 31. Nf3 {[%emt 0:01:06]} c5 {[%emt 0:02:46]} 32. a4 {[%emt 0:00:30]} b5 {[%emt 0:00:50]} 33. axb5 {[%emt 0:01:09]} Rxh1 {[%emt 0:00:10]} 34. Rxh1 {[%emt 0:00:01]} Rb8 {[%emt 0:00:01]} 35. Nd2 {[%emt 0:00:20]} Kg7 {[%emt 0:02:10]} 36. Nc4 {[%emt 0:00:12]} Bc7 {[%emt 0:00:08]} 37. b6 {[%emt 0:01:15]} Bxb6 {[%emt 0:00:08]} 38. Kd2 {[%emt 0:00:25]} Bc7 {[%emt 0:00:56]} 39. Kc2 {[%emt 0:00:14]} Rb7 {[%emt 0:00:44]} 40. Ra1 {[%emt 0:01:16]} Rb5 {[%emt 0:00:51]} 41. Kc3 {[%emt 0:30:55]} Kf7 {[%emt 0:02:32]} 42. Ne3 {[%emt 0:00:00]} Bd8 {[%emt 0:05:18]} 43. Nd5 {[%emt 0:00:00]} Rb8 {[%emt 0:04:22]} 44. Rh1 {[%emt 0:00:00]} Kg7 {[%emt 0:01:11]} 45. Ne3 {[%emt 0:00:00]} Rb4 {[%emt 0:01:44]} 46. Nc4 {[%emt 0:00:00]} Bc7 {[%emt 0:02:04]} 47. Kc2 {[%emt 0:00:00]} Rb8 {[%emt 0:01:07]} 48. Ne3 {[%emt 0:00:00]} Bd8 {[%emt 0:00:29]} 49. Nd5 {[%emt 0:00:00]} Rb7 {[%emt 0:00:43]} 50. Rh2 {[%emt 0:00:00]} Ra7 {[%emt 0:05:51]} 51. Kb3 {[%emt 0:00:00]} a4+ {[%emt 0:01:07]} 52. Ka3 {[%emt 0:00:00]} Ra5 {[%emt 0:02:03]} 53. Rc2 {[%emt 0:00:00]} Kf7 {[%emt 0:01:19]} 54. Rc4 {[%emt 0:00:00]} Ra7 {[%emt 0:02:46]} 55. Rxa4 {[%emt 0:00:10]} Rb7 {[%emt 0:02:14]} 56. Ra6 {[%emt 0:00:48]} Be7 {[%emt 0:00:33]} 57. Ka2 {[%emt 0:02:30]} Rd7 {[%emt 0:01:14]} 58. Kb3 {[%emt 0:00:49]} Bd6 {[%emt 0:00:34]} 59. Kc4 {[%emt 0:00:58]} Ke6 {[%emt 0:00:09]} 60. Nc3 {[%emt 0:00:31]} Kf7 {[%emt 0:00:43]} 61. Nb5 {[%emt 0:00:43]} Be7 {[%emt 0:00:14]} 62. Ra7 {[%emt 0:01:33]} Rd8 {[%emt 0:00:19]} 63. Rb7 {[%emt 0:02:03]} Kf8 {[%emt 0:02:53]} 64. Kc3 {[%emt 0:00:55]} Kf7 {[%emt 0:00:15]} 65. Na7 {[%emt 0:00:25]} Ke6 {[%emt 0:00:47]} 66. Rxe7+ {[%emt 0:00:31]} Kxe7 {[%emt 0:00:32]} 67. Nc6+ {[%emt 0:00:03]} Kd7 {[%emt 0:00:31]} 68. Nxd8 {[%emt 0:00:06]} Kxd8 {[%emt 0:00:04]} 69. Kc4 {[%emt 0:00:03]} 1-0